bitfinex-derivatives/quotes_BNBF0:USTF0_20260110
["timestamp","ask_amount","ask_price","bid_price","bid_amount"]
[1768077262248,0.19061704,913.46,912.22,0.68391786]
[1768077262444,0.19061704,913.46,912.23,0.68391786]
[1768077262646,0.19061704,913.46,912.07,8.26574199]
[1768077262843,0.19061704,913.46,912.08,0.68418875]
[1768077263144,0.19061704,913.46,912.09,0.68418875]
[1768077263348,0.19061704,913.46,912.1,0.68418875]
[1768077263647,0.19061704,913.46,912.11,0.68418875]
[1768077263844,0.19061704,913.46,912.12,0.68418875]
[1768077264047,0.19061704,913.46,912.13,0.68418875]
[1768077264246,0.19061704,913.46,912.14,0.68418875]
[1768077264444,0.19061704,913.46,912.15,0.68418875]
[1768077264746,0.19061704,913.46,912.16,0.68418875]
[1768077264948,0.19061704,913.46,912.17,0.68418875]
[1768077265246,0.19061704,913.46,912.07,8.26574199]
[1768077265247,0.19061704,913.46,912.18,0.68418875]
[1768077265446,0.19061704,913.46,912.19,0.68418875]
[1768077265649,0.19061704,913.46,912.2,0.68418875]
[1768077265849,0.19061704,913.46,912.21,0.68418875]
[1768077266048,0.19061704,913.46,912.22,0.68418875]
[1768077266250,0.19061704,913.46,912.23,0.68418875]
[1768077266448,0.19061704,913.46,912.24,0.68418875]
[1768077266651,0.19061704,913.46,912.25,0.68418875]
[1768077266847,0.19061704,913.46,912.26,0.68418875]
[1768077267050,0.19061704,913.46,912.07,8.26574199]
[1768077267247,0.19061704,913.46,912.08,0.68468751]
[1768077267447,0.19061704,913.46,912.09,0.68468751]
[1768077267652,0.19061704,913.46,912.1,0.68468751]
[1768077267852,0.19061704,913.46,912.11,0.68468751]
[1768077268052,0.19061704,913.46,912.12,0.68468751]
[1768077268249,0.19061704,913.46,912.13,0.68468751]
[1768077268448,0.19061704,913.46,912.14,0.68468751]
[1768077268652,0.19061704,913.46,912.07,8.26574199]
[1768077268653,0.19061704,913.46,912.15,0.68468751]
[1768077268852,0.19061704,913.46,912.16,0.68468751]
[1768077269049,0.19061704,913.46,912.17,0.68468751]
[1768077269248,0.19061704,913.46,912.18,0.68468751]
[1768077269550,0.19061704,913.46,912.19,0.68468751]
[1768077269752,0.19061704,913.46,912.2,0.68468751]
[1768077269952,0.19061704,913.46,912.21,0.68468751]
[1768077270153,0.19061704,913.46,912.22,0.68468751]
[1768077270351,0.19061704,913.46,912.23,0.68468751]
[1768077270550,0.19061704,913.46,912.24,0.68468751]
[1768077270749,0.19061704,913.46,912.25,0.68468751]
[1768077271051,0.19061704,913.46,912.26,0.68468751]
[1768077271251,0.19061704,913.46,912.27,0.68468751]
[1768077271451,0.19061704,913.46,912.07,8.26574199]
[1768077271755,0.19061704,913.46,912.08,0.684712]
[1768077272054,0.19061704,913.46,912.09,0.684712]
[1768077272351,0.19061704,913.46,912.1,0.684712]
[1768077272554,0.19061704,913.46,912.11,0.684712]
[1768077272750,0.19061704,913.46,912.12,0.684712]
[1768077273055,0.19061704,913.46,912.13,0.684712]
[1768077273250,0.19061704,913.46,912.14,0.684712]
[1768077273451,0.19061704,913.46,912.15,0.684712]
[1768077273649,0.19061704,913.46,912.16,0.684712]
[1768077273854,0.19061704,913.46,912.17,0.684712]
[1768077274153,0.19061704,913.46,912.18,0.684712]
[1768077274453,0.19061704,913.46,912.19,0.684712]
[1768077274653,0.19061704,913.46,912.2,0.684712]
[1768077274854,0.19061704,913.46,912.21,0.684712]
[1768077275054,0.19061704,913.46,912.22,0.684712]
[1768077275252,0.19061704,913.46,912.23,0.684712]
[1768077275450,0.19061704,913.46,912.24,0.684712]
[1768077275657,0.19061704,913.46,912.25,0.684712]
[1768077275855,0.19061704,913.46,912.26,0.684712]
[1768077276055,0.19061704,913.46,912.27,0.684712]
[1768077276355,0.19061704,913.46,912.28,0.684712]
[1768077276653,0.19061704,913.46,912.07,8.26574199]
[1768077276850,0.19061704,913.46,912.08,0.68470599]
[1768077277055,0.19061704,913.46,912.09,0.68470599]
[1768077277250,0.19061704,913.46,912.1,0.68470599]
[1768077277554,0.19061704,913.46,912.11,0.68470599]
[1768077277755,0.19061704,913.46,912.12,0.68470599]
[1768077277955,0.19061704,913.46,912.13,0.68470599]
[1768077278156,0.19061704,913.46,912.14,0.68470599]
[1768077278357,0.19061704,913.46,912.15,0.68470599]
[1768077278552,0.19061704,913.46,912.16,0.68470599]
[1768077278756,0.19061704,913.46,912.17,0.68470599]
[1768077278954,0.19061704,913.46,912.18,0.68470599]
[1768077279157,0.19061704,913.46,912.19,0.68470599]
[1768077279452,0.19061704,913.46,912.2,0.68470599]
[1768077279657,0.19061704,913.46,912.21,0.68470599]
[1768077279858,0.19061704,913.46,912.22,0.68470599]
[1768077280058,0.19061704,913.46,912.23,0.68470599]
[1768077280358,0.19061704,913.46,912.24,0.68470599]
[1768077280556,0.19061704,913.46,912.25,0.68470599]
[1768077280759,0.19061704,913.46,912.07,8.26574199]
[1768077280760,0.19061704,913.46,912.26,0.68470599]
[1768077280960,0.19061704,913.46,912.27,0.68470599]
[1768077281160,0.19061704,913.46,912.28,0.68470599]
[1768077281358,0.19061704,913.46,912.29,0.68470599]
[1768077281561,0.19061704,913.46,912.3,0.68470599]
[1768077281861,0.19061704,913.46,912.31,0.68470599]
[1768077282060,0.19061704,913.46,912.32,0.68470599]
[1768077282255,0.19061704,913.46,912.33,0.68470599]
[1768077282461,0.19061704,913.46,912.34,0.68470599]
[1768077282659,0.19061704,913.46,912.07,8.26574199]
[1768077282856,0.19061704,913.46,912.08,0.68444026]
[1768077283058,0.19061704,913.46,912.09,0.68444026]
[1768077283258,0.19061704,913.46,912.1,0.68444026]
[1768077283463,0.19061704,913.46,912.11,0.68444026]
[1768077283662,0.19061704,913.46,912.12,0.68444026]
[1768077283958,0.19061704,913.46,912.13,0.68444026]
[1768077284159,0.19061704,913.46,912.14,0.68444026]
[1768077284463,0.19061704,913.46,912.15,0.68444026]
[1768077284662,0.19061704,913.46,912.16,0.68444026]
[1768077284960,0.19061704,913.46,912.17,0.68444026]
[1768077285162,0.19061704,913.46,912.18,0.68444026]
[1768077285459,0.19061704,913.46,912.19,0.68444026]
[1768077285661,0.19061704,913.46,912.2,0.68444026]
[1768077285860,0.19061704,913.46,912.21,0.68444026]
[1768077286059,0.19061704,913.46,912.22,0.68444026]
[1768077286258,0.19061704,913.46,912.23,0.68444026]
[1768077286461,0.19061704,913.46,912.24,0.68444026]
[1768077286661,0.19061704,913.46,912.25,0.68444026]
[1768077286962,0.19061704,913.46,912.07,8.26574199]
[1768077287163,0.19061704,913.46,912.08,0.68434388]
[1768077287363,0.19061704,913.46,912.09,0.68434388]
[1768077287663,0.19061704,913.46,912.1,0.68434388]
[1768077287863,0.19061704,913.46,912.11,0.68434388]
[1768077288062,0.19061704,913.46,912.12,0.68434388]
[1768077288260,0.19061704,913.46,912.13,0.68434388]
[1768077288460,0.19061704,913.46,912.07,8.26574199]
[1768077288661,0.19061704,913.46,912.08,0.68425197]
[1768077288862,0.19061704,913.46,912.09,0.68425197]
[1768077289065,0.19061704,913.46,912.07,8.26574199]
[1768077289366,0.19061704,913.46,912.08,0.68419118]
[1768077289562,0.19061704,913.46,912.09,0.68419118]
[1768077289764,0.19061704,913.46,912.1,0.68419124]
[1768077289963,0.19061704,913.46,912.07,8.26574199]
[1768077290267,0.19061704,913.46,912.08,0.68419124]
[1768077290464,0.19061704,913.46,912.09,0.68419124]
[1768077290662,0.19061704,913.46,912.1,0.68419124]
[1768077290863,0.19061704,913.46,912.11,0.68419124]
[1768077291064,0.19061704,913.46,912.07,8.26574199]
[1768077291269,0.19061704,913.46,912.08,0.68407014]
[1768077291468,0.19061704,913.46,912.09,0.68407014]
[1768077291664,0.19061704,913.46,912.1,0.68407014]
[1768077291867,0.19061704,913.46,912.11,0.68407014]
[1768077292062,0.19061704,913.46,912.07,8.26574199]
[1768077292263,0.19061704,913.46,912.08,0.68403275]
[1768077292464,0.19061704,913.46,912.09,0.68403275]
[1768077292668,0.19061704,913.46,912.1,0.68403275]
[1768077292868,0.19061704,913.46,912.11,0.68403275]
[1768077293066,0.19061704,913.46,912.07,8.26574199]
[1768077293365,0.19061704,913.46,912.08,0.68400058]
[1768077293569,0.19061704,913.46,912.09,0.68400058]
[1768077293770,0.19061704,913.46,912.1,0.68400058]
[1768077293966,0.19061704,913.46,912.07,8.26574199]
[1768077294170,0.19061704,913.46,912.08,0.68397321]
[1768077294467,0.19061704,913.46,912.09,0.68397321]
[1768077294667,0.19061704,913.46,912.1,0.68397321]
[1768077294868,0.19061704,913.46,912.08,2.589]
[1768077295071,0.19061704,913.46,912.09,0.68397309]
[1768077295268,0.19061704,913.46,912.1,0.68397309]
[1768077295471,0.19061704,913.46,912.08,2.589]
[1768077295671,0.19061704,913.46,912.09,0.68394978]
[1768077295872,0.19061704,913.46,912.1,0.68394978]
[1768077296070,0.19061704,913.46,912.08,2.589]
[1768077296273,0.19061704,913.46,912.09,0.68392967]
[1768077296474,0.19061704,913.46,912.1,0.68392967]
[1768077296772,0.19061704,913.46,912.08,2.589]
[1768077296970,0.19061704,913.46,912.09,0.68398927]
[1768077297170,0.19061704,913.46,912.1,0.68398927]
[1768077297371,0.19061704,913.46,912.08,2.589]
[1768077297570,0.19061704,913.46,912.09,0.68396709]
[1768077297774,0.19061704,913.46,912.1,0.68396709]
[1768077297972,0.19061704,913.46,912.08,2.589]
[1768077298176,0.19061704,913.46,912.09,0.68396709]
[1768077298375,0.19061704,913.46,912.1,0.68396709]
[1768077298574,0.19061704,913.46,912.08,2.589]
[1768077298778,0.19061704,913.46,912.09,0.68394809]
[1768077299078,0.19061704,913.46,912.1,0.68394809]
[1768077299277,0.19061704,913.46,912.08,2.589]
[1768077299481,0.19061704,913.46,912.09,0.68396975]
[1768077299678,0.19061704,913.46,912.08,2.589]
[1768077300377,0.19061704,913.46,912.09,0.68399589]
[1768077300579,0.19061704,913.46,912.1,0.68399589]
[1768077300882,0.19061704,913.46,912.11,0.68399589]
[1768077301080,0.19061704,913.46,912.12,0.68399589]
[1768077301279,0.19061704,913.46,912.13,0.68399589]
[1768077301482,0.19061704,913.46,912.14,0.68399589]
[1768077301782,0.19061704,913.46,912.15,0.68399589]
[1768077302082,0.19061704,913.46,912.16,0.68399589]
[1768077302276,0.19061704,913.46,912.17,0.68399589]
[1768077302478,0.19061704,913.46,912.18,0.68399589]
[1768077302679,0.19061704,913.46,912.19,0.68399589]
[1768077302980,0.19061704,913.46,912.2,0.68399589]
[1768077303182,0.19061704,913.46,912.21,0.68399589]
[1768077303477,0.19061704,913.46,912.22,0.68399589]
[1768077303679,0.19061704,913.46,912.23,0.68399589]
[1768077303978,0.19061704,913.46,912.24,0.68399589]
[1768077304179,0.19061704,913.46,912.25,0.68399589]
[1768077304379,0.19061704,913.46,912.08,2.589]
[1768077304585,0.19061704,913.46,912.09,0.68376641]
[1768077304782,0.19061704,913.46,912.1,0.68376641]
[1768077305085,0.19061704,913.46,912.11,0.68376641]
[1768077305285,0.19061704,913.46,912.12,0.68376641]
[1768077305485,0.19061704,913.46,912.13,0.68376641]
[1768077305785,0.19061704,913.46,912.14,0.68376641]
[1768077305984,0.19061704,913.46,912.15,0.68376641]
[1768077306182,0.19061704,913.46,912.16,0.68376641]
[1768077306484,0.19061704,913.46,912.17,0.68376641]
[1768077306784,0.19061704,913.46,912.18,0.68376641]
[1768077306980,0.19061704,913.46,912.19,0.68376641]
[1768077307185,0.19061704,913.46,912.2,0.68376641]
[1768077307381,0.19061704,913.46,912.21,0.68376641]
[1768077307579,0.19061704,913.46,912.22,0.68376641]
[1768077307780,0.19061704,913.46,912.23,0.68376641]
[1768077308080,0.19061704,913.46,912.24,0.68376641]
[1768077308282,0.19061704,913.46,912.25,0.68376641]
[1768077308581,0.19061704,913.46,912.26,0.68376641]
[1768077308781,0.19061704,913.46,912.08,2.589]
[1768077308980,0.19061704,913.46,912.09,0.68365117]
[1768077309284,0.19061704,913.46,912.1,0.68365117]
[1768077309581,0.19061704,913.46,912.11,0.68365117]
[1768077309787,0.19061704,913.46,912.12,0.68365117]
[1768077310081,0.19061704,913.46,912.13,0.68365117]
[1768077310282,0.19061704,913.46,912.14,0.68365117]
[1768077310486,0.19061704,913.46,912.15,0.68365117]
[1768077310686,0.19061704,913.46,912.16,0.68365117]
[1768077310885,0.19061704,913.46,912.17,0.68365117]
[1768077311083,0.19061704,913.46,912.18,0.68365117]
[1768077311384,0.19061704,913.46,912.19,0.68365117]
[1768077311584,0.19061704,913.46,912.2,0.68365117]
[1768077311788,0.19061704,913.46,912.21,0.68365117]
[1768077312088,0.19061704,913.46,912.22,0.68365117]
[1768077312287,0.19061704,913.46,912.23,0.68365117]
[1768077312484,0.19061704,913.46,912.24,0.68365117]
[1768077312689,0.19061704,913.46,912.25,0.68365117]
[1768077312989,0.19061704,913.46,912.26,0.68365117]
[1768077313284,0.19061704,913.46,912.27,0.68365117]
[1768077313488,0.19061704,913.46,912.28,0.68365117]
[1768077313685,0.19061704,913.46,912.29,0.68365117]
[1768077313987,0.19061704,913.46,912.3,0.68365117]
[1768077314188,0.19061704,913.46,912.08,2.589]
[1768077314390,0.19061704,913.46,912.09,0.68349793]
[1768077314589,0.19061704,913.46,912.1,0.68349793]
[1768077314788,0.19061704,913.46,912.11,0.68349793]
[1768077314987,0.19061704,913.46,912.12,0.68349793]
[1768077315189,0.19061704,913.46,912.13,0.68349793]
[1768077315386,0.19061704,913.46,912.14,0.68349793]
[1768077315589,0.19061704,913.46,912.15,0.68349793]
[1768077315791,0.19061704,913.46,912.16,0.68349793]
[1768077315992,0.19061704,913.46,912.17,0.68349793]
[1768077316192,0.19061704,913.46,912.18,0.68349793]
[1768077316389,0.19061704,913.46,912.19,0.68349793]
[1768077316590,0.19061704,913.46,912.2,0.68349793]
[1768077316894,0.19061704,913.46,912.21,0.68349793]
[1768077317091,0.19061704,913.46,912.22,0.68349793]
[1768077317290,0.19061704,913.46,912.23,0.68349793]
[1768077317491,0.19061704,913.46,912.24,0.68349793]
[1768077317691,0.19061704,913.46,912.25,0.68349793]
[1768077317891,0.19061704,913.46,912.26,0.68349793]
[1768077318090,0.19061704,913.46,912.27,0.68349793]
[1768077318391,0.19061704,913.46,912.28,0.68349793]
[1768077318690,0.19061704,913.46,912.29,0.68349793]
[1768077318892,0.19061704,913.46,912.08,2.589]
[1768077319089,0.19061704,913.46,912.09,0.68242886]
[1768077319292,0.19061704,913.46,912.1,0.68242886]
[1768077319491,0.19061704,913.46,912.11,0.68242886]
[1768077319796,0.19061704,913.46,912.12,0.68242886]
[1768077320092,0.19061704,913.46,912.13,0.68242886]
[1768077320392,0.19061704,913.46,912.14,0.68242886]
[1768077320695,0.19061704,913.46,912.08,2.589]
[1768077320696,0.19061704,913.46,912.15,0.68242886]
[1768077320895,0.19061704,913.46,912.16,0.68242886]
[1768077321092,0.19061704,913.46,912.17,0.68242886]
[1768077321296,0.19061704,913.46,912.18,0.68242886]
[1768077321496,0.19061704,913.46,912.19,0.68242886]
[1768077321699,0.19061704,913.46,912.2,0.68242886]
[1768077321896,0.19061704,913.46,912.21,0.68242886]
[1768077322096,0.19061704,913.46,912.22,0.68242886]
[1768077322299,0.19061704,913.46,912.23,0.68242886]
[1768077322595,0.19061704,913.46,912.24,0.68242886]
[1768077322799,0.19061704,913.46,912.25,0.68242886]
[1768077322999,0.19061704,913.46,912.26,0.68242886]
[1768077323298,0.19061704,913.46,912.27,0.68242886]
[1768077323497,0.19061704,913.46,912.28,0.68242886]
[1768077323696,0.19061704,913.46,912.29,0.68242886]
[1768077323897,0.19061704,913.46,912.3,0.68242886]
[1768077324095,0.19061704,913.46,912.08,2.589]
[1768077324297,0.19061704,913.46,912.09,0.68236033]
[1768077324499,0.19061704,913.46,912.1,0.68236033]
[1768077324701,0.19061704,913.46,912.11,0.68236033]
[1768077324896,0.19061704,913.46,912.12,0.68236033]
[1768077325098,0.19061704,913.46,912.13,0.68236033]
[1768077325296,0.19061704,913.46,912.14,0.68236033]
[1768077325497,0.19061704,913.46,912.15,0.68236033]
[1768077325695,0.19061704,913.46,912.16,0.68236033]
[1768077325897,0.19061704,913.46,912.17,0.68236033]
[1768077326097,0.19061704,913.46,912.18,0.68236033]
[1768077326395,0.19061704,913.46,912.19,0.68236033]
[1768077326599,0.19061704,913.46,912.2,0.68236033]
[1768077326801,0.19061704,913.46,912.21,0.68236033]
[1768077326997,0.19061704,913.46,912.22,0.68236033]
[1768077327203,0.19061704,913.46,912.23,0.68236033]
[1768077327400,0.19061704,913.46,912.24,0.68236033]
[1768077327604,0.19061704,913.46,912.25,0.68236033]
[1768077327801,0.19061704,913.46,912.26,0.68236033]
[1768077328004,0.19061704,913.46,912.27,0.68236033]
[1768077328304,0.19061704,913.46,912.28,0.68236033]
[1768077328506,0.19061704,913.46,912.29,0.68236033]
[1768077328699,0.19061704,913.46,912.3,0.68236033]
[1768077328904,0.19061704,913.46,912.31,0.68236033]
[1768077329203,0.19061704,913.46,912.32,0.68236033]
[1768077329399,0.19061704,913.46,912.33,0.68236033]
[1768077329607,0.19061704,913.46,912.34,0.68236033]
[1768077329803,0.19061704,913.46,912.35,0.68236033]
[1768077330004,0.19061704,913.46,912.36,0.68236033]
[1768077330202,0.19061704,913.46,912.37,0.68236033]
[1768077330407,0.19061704,913.46,912.38,0.68236033]
[1768077330605,0.19061704,913.46,912.11,0.8188079]
[1768077330606,0.19061704,913.46,912.39,0.68236033]
[1768077330807,0.19061704,913.46,912.11,0.8188079]
[1768077330808,0.19061704,913.46,912.4,0.68236033]
[1768077331008,0.19061704,913.46,912.11,0.8188079]
[1768077331204,0.19061704,913.46,912.12,0.68206131]
[1768077331403,0.19061704,913.46,912.13,0.68206131]
[1768077331606,0.19061704,913.46,912.14,0.68206131]
[1768077331810,0.19061704,913.46,912.15,0.68206131]
[1768077332010,0.19061704,913.46,912.16,0.68206131]
[1768077332207,0.19061704,913.46,912.17,0.68206131]
[1768077332410,0.19061704,913.46,912.18,0.68206131]
[1768077332611,0.19061704,913.46,912.19,0.68206131]
[1768077332806,0.19061704,913.46,912.2,0.68206131]
[1768077333010,0.19061704,913.46,912.21,0.68206131]
[1768077333211,0.19061704,913.46,912.22,0.68206131]
[1768077333411,0.19061704,913.46,912.23,0.68206131]
[1768077333708,0.19061704,913.46,912.24,0.68206131]
[1768077333908,0.19061704,913.46,912.25,0.68206131]
[1768077334112,0.19061704,913.46,912.26,0.68206131]
[1768077334311,0.19061704,913.46,912.27,0.68206131]
[1768077334512,0.19061704,913.46,912.28,0.68206131]
[1768077334713,0.19061704,913.46,912.29,0.68206131]
[1768077334913,0.19061704,913.46,912.3,0.68206131]
[1768077335210,0.19061704,913.46,912.31,0.68206131]
[1768077335509,0.19061704,913.46,912.32,0.68206131]
[1768077335710,0.19061704,913.46,912.33,0.68206131]
[1768077335910,0.19061704,913.46,912.34,0.68206131]
[1768077336112,0.19061704,913.46,912.35,0.68206131]
[1768077336310,0.19061704,913.46,912.36,0.68206131]
[1768077336514,0.19061704,913.46,912.37,0.68206131]
[1768077336713,0.19061704,913.46,912.38,0.68206131]
[1768077336914,0.19061704,913.46,912.39,0.68206131]
[1768077337114,0.19061704,913.46,912.4,0.68228792]
[1768077337310,0.19061704,913.46,912.1,0.8188079]
[1768077337512,0.19061704,913.46,912.11,0.682286]
[1768077337711,0.19061704,913.46,912.12,0.682286]
[1768077337912,0.19061704,913.46,912.13,0.682286]
[1768077338212,0.19061704,913.46,912.14,0.682286]
[1768077338511,0.19061704,913.46,912.15,0.682286]
[1768077338715,0.19061704,913.46,912.16,0.682286]
[1768077338911,0.19061704,913.46,912.17,0.682286]
[1768077339216,0.19061704,913.46,912.18,2.557286]
[1768077339513,0.19061704,913.46,912.19,0.682286]
[1768077339716,0.19061704,913.46,912.2,0.682286]
[1768077340012,0.19061704,913.46,912.21,0.682286]
[1768077340315,0.19061704,913.46,912.22,0.682286]
[1768077340512,0.19061704,913.46,912.23,0.682286]
[1768077340811,0.19061704,913.46,912.24,0.682286]
[1768077341015,0.19061704,913.46,912.25,0.682286]
[1768077341217,0.19061704,913.46,912.26,0.682286]
[1768077341412,0.19061704,913.46,912.27,0.682286]
[1768077341715,0.19061704,913.46,912.28,0.682286]
[1768077341915,0.19061704,913.46,912.29,0.682286]
[1768077342212,0.19061704,913.46,912.3,0.682286]
[1768077342415,0.19061704,913.46,912.31,0.682286]
[1768077342615,0.19061704,913.46,912.32,0.682286]
[1768077342914,0.19061704,913.46,912.33,0.682286]
[1768077343215,0.19061704,913.46,912.34,0.682286]
[1768077343416,0.19061704,913.46,912.35,0.682286]
[1768077343613,0.19061704,913.46,912.36,0.682286]
[1768077343812,0.19061704,913.46,912.37,0.682286]
[1768077344015,0.19061704,913.46,912.18,1.875]
[1768077344217,0.19061704,913.46,912.19,0.6836384]
[1768077344417,0.19061704,913.46,912.2,0.6836384]
[1768077344718,0.19061704,913.46,912.21,0.6836384]
[1768077344913,0.19061704,913.46,912.22,0.6836384]
[1768077345116,0.19061704,913.46,912.23,0.6836384]
[1768077345312,0.19061704,913.46,912.24,0.6836384]
[1768077345512,0.19061704,913.46,912.25,0.6836384]
[1768077345717,0.19061704,913.46,912.26,0.6836384]
[1768077345915,0.19061704,913.46,912.27,0.6836384]
[1768077346113,0.19061704,913.46,912.28,0.6836384]
[1768077346315,0.19061704,913.46,912.29,0.6836384]
[1768077346518,0.19061704,913.46,912.3,0.6836384]
[1768077346719,0.19061704,913.46,912.31,0.6836384]
[1768077346915,0.19061704,913.46,912.32,0.6836384]
[1768077347116,0.19061704,913.46,912.33,0.6836384]
[1768077347316,0.19061704,913.46,912.34,0.6836384]
[1768077347521,0.19061704,913.46,912.35,0.6836384]
[1768077347722,0.19061704,913.46,912.36,0.6836384]
[1768077348022,0.19061704,913.46,912.37,0.6836384]
[1768077348220,0.19061704,913.46,912.38,0.6836384]
[1768077348424,0.19061704,913.46,912.39,0.6836384]
[1768077348623,0.19061704,913.46,912.18,1.875]
[1768077348824,0.19061704,913.46,912.19,0.6845754]
[1768077349024,0.19061704,913.46,912.2,0.6845754]
[1768077349225,0.19061704,913.46,912.21,0.6845754]
[1768077349521,0.19061704,913.46,912.22,0.6845754]
[1768077349825,0.19061704,913.46,912.23,0.6845754]
[1768077350023,0.19061704,913.46,912.24,0.6845754]
[1768077350223,0.19061704,913.46,912.25,0.6845754]
[1768077350528,0.19061704,913.46,912.26,0.6845754]
[1768077350727,0.19061704,913.46,912.27,0.6845754]
[1768077350921,0.19061704,913.46,912.28,0.6845754]
[1768077351126,0.19061704,913.46,912.29,0.6845754]
[1768077351422,0.19061704,913.46,912.3,0.6845754]
[1768077351624,0.19061704,913.46,912.31,0.6845754]
[1768077351825,0.19061704,913.46,912.32,0.6845754]
[1768077352021,0.19061704,913.46,912.33,0.6845754]
[1768077352222,0.19061704,913.46,912.34,0.6845754]
[1768077352525,0.19061704,913.46,912.35,0.6845754]
[1768077352723,0.19061704,913.46,912.36,0.6845754]
[1768077352923,0.19061704,913.46,912.37,0.6845754]
[1768077353123,0.19061704,913.46,912.38,0.6845754]
[1768077353326,0.19061704,913.46,912.39,0.6845754]
[1768077353625,0.19061704,913.46,912.4,0.6845754]
[1768077353836,0.19061704,913.46,912.41,0.6845754]
[1768077354127,0.19061704,913.46,912.42,0.6845754]
[1768077354328,0.19061704,913.46,912.43,0.6845754]
[1768077354628,0.19061704,913.46,912.44,0.6845754]
[1768077354827,0.19061704,913.46,912.45,0.6845754]
[1768077355027,0.19061704,913.46,912.46,0.6845754]
[1768077355228,0.19061704,913.46,912.18,1.875]
[1768077355428,0.19061704,913.46,912.19,0.68467123]
[1768077355629,0.19061704,913.46,912.2,0.68467123]
[1768077355828,0.19061704,913.46,912.21,0.68467123]
[1768077356128,0.19061704,913.46,912.22,0.68467123]
[1768077356329,0.19061704,913.46,912.23,0.68467123]
[1768077356530,0.19061704,913.46,912.24,0.68467123]
[1768077356727,0.19061704,913.46,912.25,0.68467123]
[1768077357027,0.19061704,913.46,912.26,0.68467123]
[1768077357224,0.19061704,913.46,912.27,0.68467123]
[1768077357430,0.19061704,913.46,912.28,0.68467123]
[1768077357728,0.19061704,913.46,912.29,0.68467123]
[1768077357926,0.19061704,913.46,912.3,0.68467123]
[1768077358228,0.19061704,913.46,912.31,0.68467123]
[1768077358430,0.19061704,913.46,912.32,0.68467123]
[1768077358630,0.19061704,913.46,912.33,0.68467123]
[1768077358828,0.19061704,913.46,912.34,0.68467123]
[1768077359030,0.19061704,913.46,912.35,0.68467123]
[1768077359233,0.19061704,913.46,912.36,0.68467123]
[1768077359526,0.19061704,913.46,912.37,0.68467123]
[1768077359726,0.19061704,913.46,912.18,1.875]
[1768077359727,0.19061704,913.46,912.38,0.68467123]
[1768077359929,0.19061704,913.46,912.39,0.68467123]
[1768077360129,0.19061704,913.46,912.4,0.68467123]
[1768077360330,0.19061704,913.46,912.41,0.68467123]
[1768077360530,0.19061704,913.46,912.42,0.68467123]
[1768077360826,0.19061704,913.46,912.43,0.68467123]
[1768077361027,0.19061704,913.46,912.44,0.68467123]
[1768077361228,0.19061704,913.46,912.45,0.68467123]
[1768077361428,0.19061704,913.46,912.18,1.875]
[1768077361631,0.19061704,913.46,912.19,0.6847532]
[1768077361830,0.19061704,913.46,912.2,0.6847532]
[1768077362034,0.19061704,913.46,912.21,0.6847532]
[1768077362330,0.19061704,913.46,912.22,0.6847532]
[1768077362536,0.19061704,913.46,912.23,0.6847532]
[1768077362735,0.19061704,913.46,912.24,0.6847532]
[1768077362936,0.19061704,913.46,912.25,0.6847532]
[1768077363134,0.19061704,913.46,912.26,0.6847532]
[1768077363332,0.19061704,913.46,912.27,0.6847532]
[1768077363532,0.19061704,913.46,912.28,0.6847532]
[1768077363732,0.19061704,913.46,912.29,0.6847532]
[1768077363933,0.19061704,913.46,912.3,0.6847532]
[1768077364133,0.19061704,913.46,912.31,0.6847532]
[1768077364334,0.19061704,913.46,912.32,0.6847532]
[1768077364535,0.19061704,913.46,912.33,0.6847532]
[1768077364834,0.19061704,913.46,912.34,0.6847532]
[1768077365034,0.19061704,913.46,912.35,0.6847532]
[1768077365235,0.19061704,913.46,912.36,0.6847532]
[1768077365435,0.19061704,913.46,912.37,0.6847532]
[1768077365634,0.19061704,913.46,912.38,0.6847532]
[1768077365834,0.19061704,913.46,912.39,0.6847532]
[1768077366135,0.19061704,913.46,912.4,0.6847532]
[1768077366335,0.19061704,913.46,912.41,0.6847532]
[1768077366539,0.19061704,913.46,912.18,1.875]
[1768077366540,0.19061704,913.46,912.42,0.6847532]
[1768077366738,0.19061704,913.46,912.18,1.875]
[1768077366936,0.19061704,913.46,912.19,0.68485659]
[1768077367139,0.19061704,913.46,912.2,0.68485659]
[1768077367439,0.19061704,913.46,912.21,0.68485659]
[1768077367639,0.19061704,913.46,912.22,0.68485659]
[1768077367940,0.19061704,913.46,912.23,0.68485659]
[1768077368139,0.19061704,913.46,912.18,1.875]
[1768077368140,0.19061704,913.46,912.24,0.68485659]
[1768077368339,0.19061704,913.46,912.25,0.68485659]
[1768077368541,0.19061704,913.46,912.26,0.68485659]
[1768077368839,0.19061704,913.46,912.27,0.68485659]
[1768077369041,0.19061704,913.46,912.28,0.68485659]
[1768077369342,0.19061704,913.46,912.29,0.68485659]
[1768077369540,0.19061704,913.46,912.3,0.68485659]
[1768077369737,0.19061704,913.46,912.31,0.68485659]
[1768077370036,0.19061704,913.46,912.32,0.68485659]
[1768077370241,0.19061704,913.46,912.33,0.68485659]
[1768077370438,0.19061704,913.46,912.34,0.68485659]
[1768077370639,0.19061704,913.46,912.35,0.68485659]
[1768077370838,0.19061704,913.46,912.36,0.68485659]